bitfinex-derivatives/quotes_BNBF0:USTF0_20250401
["timestamp","ask_amount","ask_price","bid_price","bid_amount"]
[1743518022259,0.28355156,614.2,613.59,0.27129424]
[1743518022460,0.28355156,614.2,613.6,0.27129424]
[1743518022661,0.28355156,614.2,613.61,0.27129424]
[1743518022861,0.28355156,614.2,613.62,0.27129424]
[1743518023058,0.28355156,614.2,613.63,0.27129424]
[1743518023262,0.28355156,614.2,613.64,0.27129424]
[1743518023562,0.28355156,614.2,613.65,0.27129424]
[1743518023759,0.28355156,614.2,613.66,0.27129424]
[1743518023960,0.28355156,614.2,613.67,0.27129424]
[1743518024159,0.28355156,614.2,613.68,0.27129424]
[1743518024355,0.28355156,614.2,613.69,0.27129424]
[1743518024556,0.28355156,614.2,613.7,0.27129424]
[1743518024761,0.364,614.21,613.71,0.27129424]
[1743518024961,0.364,614.21,613.72,0.27129424]
[1743518025160,0.364,614.21,613.67,0.332]
[1743518025161,0.364,614.21,613.68,0.27129424]
[1743518025363,0.28350421,614.2,613.67,0.332]
[1743518025665,0.28350421,614.2,613.68,0.2711443]
[1743518025965,0.28350421,614.2,613.69,0.2711443]
[1743518026163,0.28350421,614.2,613.7,0.2711443]
[1743518026357,0.28350421,614.2,613.71,0.2711443]
[1743518026659,0.28350421,614.2,613.72,0.2711443]
[1743518026862,0.28350421,614.2,613.73,0.2711443]
[1743518027163,0.28350421,614.2,613.74,0.27109747]
[1743518027363,0.28350421,614.2,613.75,0.27109747]
[1743518027668,0.364,614.21,613.76,0.27109747]
[1743518027863,0.364,614.21,613.67,0.332]
[1743518027864,0.364,614.21,613.77,0.27109747]
[1743518028065,0.364,614.21,613.67,0.332]
[1743518028066,0.364,614.21,613.78,0.27109747]
[1743518028260,0.28350421,614.2,613.79,0.27109747]
[1743518028465,0.28350421,614.2,613.8,0.27109747]
[1743518028763,0.28350421,614.2,613.81,0.2710743]
[1743518029067,0.28350421,614.2,613.82,0.2710743]
[1743518029268,0.28350421,614.2,613.83,0.2710743]
[1743518029467,0.28350421,614.2,613.84,0.2710743]
[1743518029666,0.28350421,614.2,613.85,0.2710743]
[1743518029963,0.28350421,614.2,613.67,0.332]
[1743518029964,0.28350421,614.2,613.86,0.2710743]
[1743518030163,0.28350421,614.2,613.87,0.2710743]
[1743518030559,0.28350421,614.2,613.88,0.2710743]
[1743518030762,0.364,614.21,613.89,0.2710743]
[1743518030962,0.364,614.21,613.68,0.2710743]
[1743518031161,0.364,614.21,613.69,0.2710743]
[1743518031361,0.2835019,614.2,613.67,0.332]
[1743518031566,0.2835019,614.2,613.68,0.27110046]
[1743518031768,0.2835019,614.2,613.69,0.27110046]
[1743518032067,0.2835019,614.2,613.7,0.27108672]
[1743518032268,0.2835019,614.2,613.71,0.27108672]
[1743518032461,0.2835019,614.2,613.72,0.27108672]
[1743518032662,0.2835019,614.2,613.73,0.27108672]
[1743518032864,0.2835019,614.2,613.74,0.27108672]
[1743518033067,0.2835019,614.2,613.75,0.27108672]
[1743518033266,0.2835019,614.2,613.76,0.27108672]
[1743518033463,0.2835019,614.2,613.67,0.332]
[1743518033668,0.364,614.21,613.68,0.27100713]
[1743518033870,0.364,614.21,613.69,0.27100713]
[1743518034168,0.364,614.21,613.7,0.27100713]
[1743518034369,0.364,614.21,613.71,0.27100713]
[1743518034569,0.364,614.21,613.72,0.27100713]
[1743518034869,0.364,614.21,613.73,0.27100713]
[1743518035062,0.28349266,614.2,613.73,0.27100713]
[1743518035265,0.28349266,614.2,613.74,0.27100713]
[1743518035465,0.28349266,614.2,613.67,0.332]
[1743518035466,0.28349266,614.2,613.75,0.27100713]
[1743518035663,0.28349266,614.2,613.76,0.27100713]
[1743518035864,0.28349266,614.2,613.68,0.27100713]
[1743518036069,0.28349266,614.2,613.69,0.27100713]
[1743518036270,0.28349266,614.2,613.68,0.27100713]
[1743518036568,0.28349266,614.2,613.39,0.231]
[1743518036569,0.28349266,614.2,613.69,0.27100713]
[1743518036764,0.364,614.21,613.39,0.231]
[1743518036765,0.364,614.21,613.4,0.27100713]
[1743518036962,0.364,614.21,613.41,0.27100713]
[1743518037164,0.364,614.21,613.42,0.27100713]
[1743518037363,0.364,614.21,613.43,0.27100713]
[1743518037665,0.364,614.21,613.44,0.27100713]
[1743518037870,0.28352846,614.2,613.45,0.27100713]
[1743518038069,0.28352846,614.2,613.2,0.32615786]
[1743518038070,0.28352846,614.2,613.46,0.27100713]
[1743518038471,0.28352846,614.2,613.47,0.27100713]
[1743518038672,0.28352846,614.2,613.2,0.32615786]
[1743518038673,0.28352846,614.2,613.48,0.27100713]
[1743518038873,0.28352846,614.2,613.49,0.27100713]
[1743518039074,0.28352846,614.2,613.5,0.27100713]
[1743518039373,0.28352846,614.2,613.51,0.27100713]
[1743518039569,0.28352846,614.2,613.52,0.27100713]
[1743518039769,0.28352846,614.2,613.53,0.27100713]
[1743518039974,0.28352846,614.2,613.2,0.32615786]
[1743518039975,0.28352846,614.2,613.54,0.27098237]
[1743518040169,0.28352846,614.2,613.55,0.27098237]
[1743518040369,0.28352846,614.2,613.56,0.27098237]
[1743518040570,0.28352846,614.2,613.57,0.27098237]
[1743518040771,0.28352846,614.2,613.58,0.27098237]
[1743518040971,0.28352846,614.2,613.59,0.27098237]
[1743518041172,0.28352846,614.2,613.6,0.27098237]
[1743518041373,0.28352846,614.2,613.61,0.27098237]
[1743518041573,0.28352846,614.2,613.59,0.231]
[1743518041574,0.69152846,614.2,613.62,0.27098237]
[1743518041875,0.69152846,614.2,613.63,0.27098237]
[1743518042073,0.69152846,614.2,613.64,0.27098237]
[1743518042272,0.69152846,614.2,613.65,0.27098237]
[1743518042474,0.69152846,614.2,613.66,0.27098237]
[1743518042670,0.69152846,614.2,613.67,0.27098237]
[1743518042870,0.69152846,614.2,613.68,0.27098237]
[1743518043071,0.69152846,614.2,613.69,0.27098237]
[1743518043275,0.69152846,614.2,613.7,0.27098237]
[1743518043476,0.69152846,614.2,613.71,0.27098237]
[1743518043679,0.69152846,614.2,613.72,0.27098237]
[1743518043874,0.69152846,614.2,613.59,0.231]
[1743518043875,0.69152846,614.2,613.73,0.27098237]
[1743518044072,0.69152846,614.2,613.74,0.27098237]
[1743518044273,0.69152846,614.2,613.75,0.27097926]
[1743518044576,0.69152846,614.2,613.76,0.27097926]
[1743518044870,0.69152846,614.2,613.77,0.27097926]
[1743518045077,0.69152846,614.2,613.6,0.27097926]
[1743518045377,0.69152846,614.2,613.61,0.27097926]
[1743518045580,0.69152846,614.2,613.62,0.27097926]
[1743518045779,0.408,614.2,613.63,0.27101577]
[1743518045980,0.408,614.2,613.64,0.27101577]
[1743518046181,0.408,614.2,613.65,0.27101577]
[1743518046378,0.408,614.2,613.59,0.231]
[1743518046379,0.408,614.2,613.66,0.27101577]
[1743518046575,0.408,614.2,613.67,0.27101577]
[1743518046778,0.408,614.2,613.68,0.27101577]
[1743518046973,0.28349382,614.19,613.68,0.27101577]
[1743518047178,0.28349382,614.19,613.69,0.27101577]
[1743518047580,0.28349382,614.19,613.7,0.27101577]
[1743518047777,0.28349382,614.19,613.71,0.27101577]
[1743518047976,0.28349382,614.19,613.72,0.27101577]
[1743518048181,0.28349382,614.19,613.73,0.27101577]
[1743518048375,0.28349382,614.19,613.74,0.27101577]
[1743518048575,0.28349382,614.19,613.75,0.27101577]
[1743518048778,0.28349382,614.19,613.76,0.27101577]
[1743518048979,0.28349382,614.19,613.77,0.27101577]
[1743518049181,0.28349382,614.19,613.78,0.27101577]
[1743518049384,0.28349382,614.19,613.79,0.27101577]
[1743518049582,0.28349382,614.19,613.6,0.27101577]
[1743518049776,0.28349382,614.19,613.61,0.27101577]
[1743518049981,0.28349382,614.19,613.62,0.27101577]
[1743518050181,0.28349382,614.19,613.63,0.27101577]
[1743518050484,0.28349382,614.19,613.64,0.27099307]
[1743518050882,0.28349382,614.19,613.65,0.27099307]
[1743518051081,0.28349382,614.19,613.66,0.27099307]
[1743518051285,0.28349382,614.19,613.59,0.231]
[1743518051286,0.28349382,614.19,613.67,0.27099307]
[1743518051480,0.28349382,614.19,613.68,0.27099307]
[1743518051684,0.408,614.2,613.59,0.231]
[1743518051685,0.408,614.2,613.69,0.27099307]
[1743518051886,0.408,614.2,613.7,0.27099307]
[1743518052089,0.408,614.2,613.71,0.27099307]
[1743518052289,0.408,614.2,613.72,0.27099307]
[1743518052583,0.408,614.2,613.73,0.27099307]
[1743518052887,0.408,614.2,613.74,0.27099307]
[1743518053084,0.28348227,614.19,613.75,0.27099307]
[1743518053289,0.28348227,614.19,613.76,0.27099307]
[1743518053693,0.28348227,614.19,613.77,0.27084164]
[1743518053990,0.28348227,614.19,613.78,0.27084164]
[1743518054186,0.28348227,614.19,613.79,0.27084164]
[1743518054390,0.28348227,614.19,613.8,0.27084164]
[1743518054686,0.28348227,614.19,613.81,0.27084164]
[1743518054892,0.408,614.2,613.82,0.27084164]
[1743518055192,0.408,614.2,613.83,0.27084164]
[1743518055386,0.408,614.2,613.84,0.27084164]
[1743518055688,0.408,614.2,613.6,0.27084164]
[1743518055991,0.28348227,614.19,613.61,0.27084164]
[1743518056392,0.28348227,614.19,613.62,0.27086946]
[1743518056592,0.28348227,614.19,613.63,0.27086946]
[1743518056992,0.28348227,614.19,613.64,0.27086946]
[1743518057188,0.28348227,614.19,613.65,0.27086946]
[1743518057390,0.28348227,614.19,613.66,0.27086946]
[1743518057588,0.28348227,614.19,613.67,0.27086946]
[1743518057793,0.408,614.2,613.68,0.27086946]
[1743518057987,0.408,614.2,613.69,0.27086946]
[1743518058186,0.408,614.2,613.7,0.27086946]
[1743518058388,0.408,614.2,613.59,0.231]
[1743518058389,0.408,614.2,613.71,0.27086946]
[1743518058690,0.408,614.2,613.72,0.27086946]
[1743518058992,0.28349382,614.19,613.73,0.27086946]
[1743518059188,0.28349382,614.19,613.59,0.231]
[1743518059189,0.28349382,614.19,613.74,0.27086946]
[1743518059492,0.28349382,614.19,613.75,0.27086946]
[1743518059692,0.28349382,614.19,613.59,0.231]
[1743518059693,0.28349382,614.19,613.76,0.27086946]
[1743518059888,0.28349382,614.19,613.59,0.231]
[1743518060091,0.28349382,614.19,613.6,0.27079561]
[1743518060393,0.28349382,614.19,613.61,0.27079561]
[1743518060688,0.28349382,614.19,613.62,0.27079561]
[1743518060896,0.408,614.2,613.63,0.27079561]
[1743518061093,0.408,614.2,613.64,0.27079561]
[1743518061289,0.408,614.2,613.65,0.27079561]
[1743518061593,0.408,614.2,613.66,0.27076693]
[1743518061794,0.408,614.2,613.59,0.231]
[1743518061795,0.408,614.2,613.67,0.27076693]
[1743518061994,0.408,614.2,613.68,0.27076693]
[1743518062195,0.28348458,614.19,613.69,0.27076693]
[1743518062395,0.28348458,614.19,613.59,0.231]
[1743518062396,0.28348458,614.19,613.7,0.27076693]
[1743518062695,0.28348458,614.19,613.71,0.27076693]
[1743518062994,0.28348458,614.19,613.72,0.27076693]
[1743518063188,0.28348458,614.19,613.59,0.231]
[1743518063189,0.28348458,614.19,613.73,0.27076693]
[1743518063391,0.28348458,614.19,613.74,0.27076693]
[1743518063594,0.28348458,614.19,613.75,0.27076693]
[1743518063795,0.28348458,614.19,613.52,0.502]
[1743518063796,0.28348458,614.19,613.76,0.27076693]
[1743518063993,0.28348458,614.19,613.52,0.502]
[1743518063994,0.28348458,614.19,613.77,0.27076693]
[1743518064193,0.28348458,614.19,613.78,0.27076693]
[1743518064393,0.28348458,614.19,613.79,0.27076693]
[1743518064595,0.28348458,614.19,613.8,0.27076693]
[1743518064890,0.28348458,614.19,613.81,0.27076693]
[1743518065089,0.28348458,614.19,613.82,0.27076693]
[1743518065290,0.28348458,614.19,613.83,0.27076693]
[1743518065594,0.28348458,614.19,613.84,0.27076693]
[1743518065890,0.28348458,614.19,613.85,0.27076693]
[1743518066097,0.28348458,614.19,613.86,0.27076693]
[1743518066395,0.28348458,614.19,613.87,0.27076693]
[1743518066594,0.28348458,614.19,613.88,0.27076693]
[1743518066789,0.467,614.22,613.89,0.27076693]
[1743518066992,0.467,614.22,613.9,0.27076693]
[1743518067192,0.467,614.22,613.81,0.27076693]
[1743518067396,0.467,614.22,613.82,0.27076693]
[1743518067694,0.28351691,614.21,613.83,0.27076693]
[1743518067894,0.28351691,614.21,613.8,0.23]
[1743518067895,0.28351691,614.21,613.84,0.27076693]
[1743518068094,0.28351691,614.21,613.85,0.27076693]
[1743518068297,0.28351691,614.21,613.86,0.27076693]
[1743518068489,0.467,614.22,613.87,0.27076693]
[1743518068791,0.467,614.22,613.88,0.27076693]
[1743518068990,0.467,614.22,613.83,0.27076693]
[1743518069294,0.467,614.22,613.84,0.27076693]
[1743518069489,0.467,614.22,613.85,0.27076693]
[1743518069695,0.467,614.22,613.83,0.27076693]
[1743518069894,0.467,614.22,613.84,0.27076693]
[1743518070094,0.467,614.22,613.85,0.27076693]
[1743518070295,0.467,614.22,613.86,0.27076693]
[1743518070496,0.467,614.22,613.87,0.27076693]
[1743518070893,0.467,614.22,613.82,0.458]
[1743518070894,0.467,614.22,613.88,0.27076693]
[1743518071090,0.467,614.22,613.89,0.27076693]
[1743518071295,0.467,614.22,613.9,0.27076693]
[1743518071491,0.467,614.22,613.91,0.27076693]
[1743518071698,0.467,614.22,613.92,0.27076693]
[1743518071998,0.467,614.22,613.93,0.27076693]
[1743518072193,0.467,614.22,613.94,0.27076693]
[1743518072398,0.467,614.22,613.95,0.27076693]
[1743518072594,0.467,614.22,613.82,0.458]
[1743518072595,0.467,614.22,613.96,0.2707264]
[1743518072801,0.467,614.22,613.83,0.2707264]
[1743518072999,0.467,614.22,613.97,0.2707264]
[1743518073195,0.467,614.22,613.98,0.2707264]
[1743518073503,0.467,614.22,613.99,0.2707264]
[1743518073699,0.467,614.22,613.83,0.2707264]
[1743518073899,0.467,614.22,613.84,0.2707264]
[1743518074098,0.467,614.22,613.85,0.2707264]
[1743518074397,0.467,614.22,613.86,0.2707264]
[1743518074594,0.467,614.22,613.87,0.2707264]
[1743518074796,0.467,614.22,613.88,0.2707264]
[1743518074999,0.467,614.22,613.89,0.2707264]
[1743518075201,0.467,614.22,613.9,0.2707264]
[1743518075501,0.467,614.22,613.91,0.2707264]
[1743518075701,0.467,614.22,613.92,0.2707264]
[1743518075895,0.467,614.22,613.93,0.2707264]
[1743518076096,0.467,614.22,613.94,0.2707264]
[1743518076299,0.467,614.22,613.95,0.2707264]
[1743518076603,0.467,614.22,613.96,0.2707264]
[1743518076802,0.467,614.22,613.82,0.458]
[1743518077601,0.467,614.22,613.83,0.27025101]
[1743518077797,0.28340955,614.28,613.83,0.27025101]
[1743518078302,0.28340955,614.28,613.84,0.27025101]
[1743518078503,0.28340955,614.28,613.85,0.27025101]
[1743518078805,0.28340955,614.28,613.86,0.27025101]
[1743518078999,0.28340955,614.28,613.82,0.458]
[1743518079303,0.28340955,614.28,613.83,0.27022131]
[1743518079504,0.28340955,614.28,613.84,0.27022131]
[1743518079705,0.28340955,614.28,613.85,0.27022131]
[1743518079906,0.28340955,614.28,613.86,0.27022131]
[1743518080101,0.39,614.27,613.87,0.27022131]
[1743518080305,0.39,614.27,613.88,0.27022131]
[1743518080505,0.39,614.27,613.82,0.458]
[1743518080506,0.39,614.27,613.89,0.27022131]
[1743518080707,0.39,614.27,613.9,0.27022131]
[1743518080904,0.39,614.27,613.82,0.458]
[1743518080905,0.39,614.27,613.91,0.27022131]
[1743518081306,0.39,614.27,613.92,0.27022131]
[1743518081606,0.39,614.27,613.93,0.27022131]
[1743518081810,0.39,614.27,613.94,0.27022131]
[1743518082106,0.39,614.27,613.82,0.458]
[1743518082107,0.39,614.27,613.95,0.27022131]
[1743518082506,0.39,614.27,613.96,0.27022131]
[1743518082700,0.39,614.27,613.97,0.27022131]
[1743518082905,0.39,614.27,613.98,0.27022131]
[1743518083101,0.39,614.27,613.82,0.458]
[1743518083102,0.39,614.27,613.99,0.27022131]
[1743518083499,0.39,614.27,614.0,0.27022131]
[1743518083702,0.39,614.27,614.01,0.27022131]
[1743518083907,0.39,614.27,614.02,0.27022131]
[1743518084207,0.39,614.27,614.03,0.27022131]
[1743518084407,0.39,614.27,614.04,0.27022131]
[1743518084607,0.39,614.27,614.05,0.27022131]
[1743518084808,0.39,614.27,614.06,0.27022131]
[1743518085008,0.39,614.27,614.07,0.27022131]
[1743518085208,0.39,614.27,614.08,0.27022131]
[1743518085610,0.39,614.27,614.09,0.27020181]
[1743518085810,0.39,614.27,613.82,0.458]
[1743518085811,0.39,614.27,613.83,0.27020181]
[1743518086010,0.39,614.27,613.84,0.27020181]
[1743518086212,0.39,614.27,613.82,0.458]
[1743518086213,0.39,614.27,613.85,0.27020181]
[1743518086407,0.39,614.27,613.86,0.27020181]
[1743518086612,0.39,614.27,613.87,0.27020181]
[1743518086912,0.39,614.27,613.88,0.27020181]
[1743518087112,0.39,614.27,613.89,0.27020181]
[1743518087413,0.39,614.27,613.9,0.27020181]
[1743518087610,0.39,614.27,613.91,0.27020181]
[1743518087811,0.39,614.27,613.92,0.27020181]
[1743518088013,0.39,614.27,613.93,0.27020181]
[1743518088212,0.39,614.27,613.94,0.27020181]
[1743518088409,0.39,614.27,613.95,0.27020181]
[1743518088613,0.39,614.27,613.96,0.27020181]
[1743518088814,0.39,614.27,613.97,0.27020181]
[1743518089014,0.39,614.27,613.98,0.27020181]
[1743518089214,0.39,614.27,613.99,0.27020181]
[1743518089417,0.39,614.27,614.0,0.27020181]
[1743518089616,0.39,614.27,614.01,0.27020181]
[1743518089810,0.39,614.27,613.82,0.458]
[1743518089811,0.39,614.27,614.02,0.27020181]
[1743518090013,0.39,614.27,614.03,0.27020181]
[1743518090210,0.39,614.27,614.04,0.27020181]
[1743518090408,0.39,614.27,614.05,0.27020181]
[1743518090713,0.39,614.27,614.06,0.27020181]
[1743518090915,0.39,614.27,614.07,0.27020181]
[1743518091110,0.39,614.27,614.08,0.27020181]
[1743518091310,0.39,614.27,614.09,0.27020181]
[1743518091514,0.39,614.27,614.1,0.27020181]
[1743518091715,0.39,614.27,614.11,0.27020181]
[1743518091917,0.39,614.27,613.82,0.458]
[1743518092116,0.39,614.27,613.83,0.26976298]
[1743518092316,0.28325499,614.6,613.84,0.26976298]
[1743518092514,0.28325499,614.6,613.85,0.26976298]
[1743518092719,0.28325499,614.6,613.86,0.26976298]
[1743518092919,0.28325499,614.6,613.87,0.26976298]
[1743518093119,0.28325499,614.6,613.88,0.26976298]
[1743518093315,0.28325499,614.6,613.8,0.23]
[1743518093316,0.28325499,614.6,613.89,0.26976298]
[1743518093516,0.28325499,614.6,613.8,0.23]
[1743518093716,0.28325499,614.6,613.81,0.26963306]
[1743518093917,0.28325499,614.6,613.82,0.26963306]
[1743518094117,0.28325499,614.6,613.83,0.26963306]
[1743518094317,0.28325499,614.6,613.84,0.26963306]
[1743518094514,0.28325499,614.6,613.85,0.26963306]
[1743518094714,0.28325499,614.6,613.2,0.32615786]
[1743518094715,0.28325499,614.6,613.86,0.26963306]
[1743518094914,0.28325499,614.6,613.87,0.26963306]
[1743518095320,0.28325499,614.6,613.88,0.26963306]
[1743518095517,0.28325499,614.6,613.89,0.26963306]
[1743518095717,0.28325499,614.6,613.9,0.26963306]
[1743518095915,0.297,614.59,613.91,0.26963306]
[1743518096113,0.297,614.59,613.92,0.26963306]
[1743518096321,0.297,614.59,613.93,0.26963306]
[1743518096521,0.297,614.59,613.94,0.26963306]
[1743518096919,0.297,614.59,613.95,0.63863306]
[1743518097120,0.297,614.59,613.96,0.26963306]
[1743518097320,0.297,614.59,613.97,0.26963306]
[1743518097516,0.297,614.59,613.98,0.26963306]
[1743518097821,0.297,614.59,613.99,0.26963306]
[1743518098017,0.28325384,614.58,614.0,0.26963306]
[1743518098324,0.28325384,614.58,614.01,0.26963306]
[1743518098520,0.28325384,614.58,614.02,0.26963306]
[1743518098716,0.28325384,614.58,614.03,0.26963306]
[1743518098922,0.28325384,614.58,614.04,0.26963306]
[1743518099218,0.28325384,614.58,614.05,0.26963306]
[1743518099421,0.28325384,614.58,614.06,0.26963306]
[1743518099623,0.28325384,614.58,614.07,0.26963306]
[1743518099917,0.297,614.59,614.08,0.26963306]
[1743518100120,0.297,614.59,614.09,0.26963306]
[1743518100318,0.297,614.59,614.1,0.26963306]
[1743518100522,0.297,614.59,614.11,0.26963306]
[1743518100725,0.297,614.59,614.12,0.26963306]
[1743518101022,0.28327228,614.58,614.13,0.26963306]
[1743518101223,0.28327228,614.58,614.14,0.26991304]
[1743518101522,0.28327228,614.58,614.15,0.26991304]
[1743518101823,0.28327228,614.58,614.16,0.26991304]
[1743518102021,0.28327228,614.58,614.17,0.26991304]
[1743518102322,0.28327228,614.58,614.18,0.26991304]
[1743518102621,0.28327228,614.58,614.19,0.26991304]
[1743518102824,0.28327228,614.58,614.2,0.27000071]
[1743518103021,0.28327228,614.58,614.21,0.27000071]
[1743518103223,0.28327228,614.58,614.22,0.27000071]
[1743518103423,0.28327228,614.58,614.23,0.27000071]
[1743518103625,0.28327228,614.58,614.24,0.27000071]
[1743518103820,0.28327228,614.58,614.25,0.27000071]
[1743518104019,0.28327228,614.58,614.26,0.27000071]
[1743518104222,0.28327228,614.58,614.27,0.27000071]
[1743518104418,0.28327228,614.58,614.28,0.27000071]
[1743518104720,0.28327228,614.58,614.29,0.27000071]
[1743518105025,0.28327228,614.58,614.3,0.27000071]
[1743518105220,0.28327228,614.58,614.31,0.27000071]
[1743518105419,0.28327228,614.58,614.32,0.27000071]
[1743518105619,0.28327228,614.58,614.33,0.27000071]
[1743518105821,0.297,614.59,614.34,0.27000071]
[1743518106223,0.297,614.59,614.0,0.23]
[1743518106224,0.297,614.59,614.35,0.27000071]
[1743518106421,0.297,614.59,614.01,0.27000071]
[1743518106623,0.297,614.59,614.02,0.27000071]
[1743518106827,0.297,614.59,614.03,0.27000071]
[1743518107024,0.28327228,614.58,614.04,0.27000071]
[1743518107229,0.28327228,614.58,614.0,0.23]
[1743518107230,0.28327228,614.58,614.05,0.27000071]
[1743518107427,0.28327228,614.58,614.06,0.27000071]
[1743518107629,0.28327228,614.58,614.0,0.23]
[1743518107827,0.28327228,614.58,614.01,0.26987593]
[1743518108032,0.28327228,614.58,614.02,0.26987593]
[1743518108236,0.28327228,614.58,614.03,0.26987593]
[1743518108431,0.28327228,614.58,614.04,0.26987593]
[1743518108635,0.28327228,614.58,614.05,0.26987593]
[1743518108837,0.297,614.59,614.06,0.26987593]
[1743518109031,0.297,614.59,614.07,0.26987593]
[1743518109231,0.297,614.59,614.08,0.26986448]
[1743518109435,0.297,614.59,614.09,0.26986448]
[1743518109635,0.297,614.59,614.01,0.26986448]
[1743518110032,0.28329765,614.58,614.01,0.26986448]
[1743518110838,0.28329765,614.58,614.02,0.26997362]
[1743518111035,0.28329765,614.58,614.01,0.26997362]
[1743518111237,0.28329765,614.58,614.02,0.26997362]
[1743518111439,0.28329765,614.58,614.01,0.26997362]
[1743518111837,0.297,614.59,614.01,0.26997362]
[1743518113134,0.28329304,614.58,614.01,0.26997362]
[1743518113442,0.28329304,614.58,614.02,0.26997362]
[1743518113643,0.28329304,614.58,613.96,0.26997362]
[1743518113845,0.28329304,614.58,613.97,0.26997362]
[1743518114045,0.28329304,614.58,613.96,0.26997362]
[1743518114240,0.28329304,614.58,613.97,0.26997362]
[1743518114441,0.28329304,614.58,613.98,0.26997362]
[1743518114645,0.28329304,614.58,613.99,0.26997362]
[1743518114847,0.64983102,615.37,614.0,0.26997362]
[1743518115145,0.32524027,614.93,614.0,0.26997362]
[1743518115344,0.32524027,614.93,613.95,0.369]
[1743518115345,0.32524027,614.93,614.01,0.26997362]
[1743518115641,0.32524027,614.93,613.95,0.369]
[1743518115642,0.32524027,614.93,614.02,0.26997362]
[1743518115848,0.32524027,614.93,614.03,0.26997362]
[1743518116148,0.28327459,614.92,614.04,0.26997362]
[1743518116348,0.32525084,614.91,614.05,0.26997362]
[1743518116648,0.32525084,614.91,614.06,0.26997362]
[1743518116942,0.32525084,614.91,614.07,0.26997362]
[1743518117147,0.32525084,614.91,614.08,0.26997362]
[1743518117352,0.32525084,614.91,614.09,0.26997362]
[1743518117647,0.32525084,614.91,614.02,0.23]
[1743518117648,0.32525084,614.91,614.1,0.26997362]
[1743518117842,0.32525084,614.91,614.03,0.26997362]
[1743518118048,0.32525084,614.91,614.02,0.23]
[1743518118440,0.2832769,614.9,614.02,0.23]
[1743518118746,0.32526142,614.89,614.03,0.26952259]
[1743518119447,0.32526142,614.89,614.04,0.26952259]
[1743518119748,0.32526142,614.89,614.05,0.26952259]
[1743518120046,0.32526142,614.89,614.06,0.26952259]
[1743518120247,0.32526142,614.89,614.03,0.26952259]
[1743518120548,0.32526142,614.89,614.04,0.26952259]
[1743518120747,0.32526142,614.89,614.05,0.26952259]
[1743518120941,0.32526142,614.89,614.06,0.26952259]
[1743518121142,0.32526142,614.89,614.03,0.26952259]
[1743518121348,0.28326306,614.88,614.04,0.26952259]
[1743518121541,0.325272,614.87,614.03,0.26952259]
[1743518121745,0.325272,614.87,614.04,0.26952259]
[1743518121948,0.325272,614.87,614.05,0.26952259]
[1743518122143,0.325272,614.87,614.06,0.26952259]
[1743518122347,0.325272,614.87,614.07,0.26952259]
[1743518122548,0.325272,614.87,614.08,0.26952259]
[1743518122849,0.325272,614.87,614.02,0.23]
[1743518122850,0.325272,614.87,614.09,0.26952259]
[1743518123050,0.325272,614.87,614.1,0.26952259]
[1743518123250,0.325272,614.87,614.11,0.26952259]
[1743518123449,0.325272,614.87,614.02,0.23]
[1743518123450,0.325272,614.87,614.12,0.26952259]
[1743518123650,0.325272,614.87,614.13,0.26952259]
[1743518123949,0.325272,614.87,614.14,0.26952259]
[1743518124146,0.325272,614.87,614.15,0.26952259]
[1743518124345,0.28323539,614.86,614.16,0.26952259]
[1743518124549,0.28323539,614.86,614.17,0.26952259]
[1743518124744,0.28323539,614.86,614.18,0.26952259]
[1743518125052,0.28323539,614.86,614.19,0.26952259]
[1743518125245,0.28323539,614.86,614.2,0.26952259]
[1743518125546,0.28323539,614.86,614.21,0.26952259]
[1743518125847,0.28323539,614.86,614.22,0.26952259]
[1743518126051,0.28323539,614.86,614.23,0.26952259]
[1743518126244,0.28323539,614.86,614.24,0.26952259]
[1743518126445,0.28323539,614.86,614.25,0.26952259]
[1743518126645,0.28323539,614.86,614.03,0.26952259]
[1743518126848,0.28323539,614.86,614.04,0.26952259]
[1743518127243,0.28323539,614.86,614.05,0.26952259]
[1743518127447,0.28323539,614.86,614.06,0.26952259]
[1743518127652,0.28323539,614.86,614.07,0.26952259]
[1743518127851,0.28323539,614.86,614.08,0.26952259]
[1743518128051,0.28323539,614.86,614.04,0.44]
[1743518128052,0.28323539,614.86,614.09,0.26952259]
[1743518128252,0.28323539,614.86,614.1,0.26952259]
[1743518128452,0.28323539,614.86,614.11,0.26952259]
[1743518128752,0.28323539,614.86,614.12,0.26952259]